[Event "ROU-ch Men 2018"]
[Site "Olanesti"]
[Date "2018.05.21"]
[Round "8"]
[White "Farcadi, Hunor"]
[Black "Horvat, Dan-Sebastian"]
[Result "0-1"]
[ECO "C47"]
[WhiteElo "1959"]
[BlackElo "2152"]
[Annotator "NA RC"]
[PlyCount "94"]
[EventDate "2018.??.??"]
[EventType "swiss"]
[EventCountry "ROU"]
[SourceTitle "playchess.com"]
[Source "ChessBase"]
[SourceQuality "1"]
[TimeControl "40/5400+30:1800+30"]

1. e4 {[%emt 0:00:00]} e5 {[%emt 0:06:24]} 2. Nf3 {[%emt 0:00:00]} Nc6 {[%emt 0:00:05]} 3. Nc3 {[%emt 0:00:00]} Nf6 {[%emt 0:02:00]} 4. a3 {[%emt 0:00:00]} Be7 {[%emt 0:03:56]} 5. d4 {[%emt 0:00:25]} d6 {[%emt 0:01:04] C47: Schottisches Vierspringerspiel} (5... exd4 6. Nxd4 d6 7. Bc4 O-O 8. O-O Nxd4 9. Qxd4 Nd7 10. Nd5 Bf6 11. Nxf6+ Qxf6 12. Be3 Re8 13. Rae1 Ne5 14. Be2 Qg6 15. Bf4 Qf6 16. Be3 Qg6 17. Bf4 Qf6 {½-½ (17) Safarli,E (2639)-Kravtsiv,M (2672) Riadh 2017}) 6. Bc4 {[%emt 0:01:27]} O-O {[%emt 0:00:22]} 7. h3 {[%emt 0:03:36]} Nxe4 {[%emt 0:17:17]} 8. Nxe4 {[%emt 0:05:22]} d5 {[%emt 0:00:35]} 9. Bxd5 {[%emt 0:02:35]} Qxd5 {[%emt 0:00:09]} 10. Nc3 {[%emt 0:00:04]} Qd6 $146 {[%emt 0:00:15]} ({Vorgänger:} 10... Qc4 11. d5 e4 12. Nd2 Qa6 13. dxc6 {1-0 (44) Starostits,I (2511)-Martinkus,R (2257) Lithuania 2007}) 11. d5 {[%emt 0:01:27]} Nd4 {[%emt 0:00:47]} 12. Nxd4 {[%emt 0:02:15]} exd4 {[%emt 0:00:08]} 13. Qxd4 {[%emt 0:00:10]} Qg6 {[%emt 0:01:13]} 14. Bf4 {[%emt 0:07:52]} Bf6 {[%emt 0:01:17]} 15. Qd2 {[%emt 0:03:22]} Re8+ {[%emt 0:03:19]} 16. Be3 {[%emt 0:01:29]} Qxg2 {[%emt 0:18:20]} 17. O-O-O {[%emt 0:00:13]} Qf3 {[%emt 0:00:44]} 18. Bd4 {[%emt 0:09:20]} Bxd4 {[%emt 0:01:44]} 19. Qxd4 {[%emt 0:00:07]} Bf5 {[%emt 0:00:29]} 20. Rhg1 {[%emt 0:02:32]} Bg6 {[%emt 0:00:16]} 21. h4 {[%emt 0:03:53]} Qf5 {[%emt 0:08:47]} 22. Qd2 {[%emt 0:05:03]} f6 {[%emt 0:03:39]} 23. Rde1 {[%emt 0:08:40]} a6 {[%emt 0:07:38]} 24. Nd1 {[%emt 0:03:35]} Rxe1 {[%emt 0:05:09]} 25. Rxe1 {[%emt 0:00:33]} Rd8 {[%emt 0:00:09]} 26. Ne3 {[%emt 0:00:30]} Qf4 {[%emt 0:00:41]} 27. Rf1 {[%emt 0:07:01]} Qxh4 {[%emt 0:04:15]} 28. Qc3 {[%emt 0:01:29]} Qf4 {[%emt 0:00:29]} 29. Qb3 {[%emt 0:00:40]} b5 {[%emt 0:02:12]} 30. d6+ {[%emt 0:03:30]} Bf7 {[%emt 0:00:09]} 31. dxc7 {[%emt 0:00:09]} Qxc7 {[%emt 0:00:06]} 32. Qb4 {[%emt 0:00:12]} h5 {[%emt 0:03:59]} 33. Qe4 {[%emt 0:05:33]} Re8 {[%emt 0:01:09]} 34. Qf3 {[%emt 0:02:13]} Bg6 {[%emt 0:05:30]} 35. Qg2 {[%emt 0:04:21]} Be4 {[%emt 0:01:41]} 36. Qh3 {[%emt 0:00:25]} Qc5 {[%emt 0:01:01]} 37. Rg1 {[%emt 0:01:11]} Kf8 {[%emt 0:00:19]} 38. Rd1 {[%emt 0:04:31]} Bg6 {[%emt 0:00:04]} 39. Rd2 {[%emt 0:01:03]} Qg5 {[%emt 0:00:27]} 40. Qd7 {[%emt 0:00:00]} Qe5 {[%emt 0:01:56]} 41. Qb7 {[%emt 0:08:26]} Be4 $19 {[%emt 0:15:14]} 42. Qxa6 {[%emt 0:02:31]} h4 {[%emt 0:00:08]} 43. Qd6+ {[%emt 0:04:16]} Qxd6 {[%emt 0:00:46]} 44. Rxd6 {[%emt 0:00:05]} h3 {[%emt 0:00:19]} 45. Ng4 {[%emt 0:03:46]} Bf3 {[%emt 0:01:17]} 46. Nh2 {[%emt 0:00:09]} Re1+ {[%emt 0:00:10]} 47. Kd2 {[%emt 0:00:05]} Rd1+ {[%emt 0:00:05]} 0-1

[Event "ROU-ch Men 2018"]
[Site "Olanesti"]
[Date "2018.05.21"]
[Round "8"]
[White "Stan, Andrei-Mihaita"]
[Black "Rauca, Horatiu-Augustin"]
[Result "1/2-1/2"]
[ECO "A52"]
[WhiteElo "1860"]
[BlackElo "1897"]
[Annotator "NA"]
[PlyCount "27"]
[EventDate "2018.??.??"]
[EventType "swiss"]
[EventCountry "ROU"]
[SourceTitle "playchess.com"]
[Source "ChessBase"]
[SourceQuality "1"]
[TimeControl "40/5400+30:1800+30"]

1. d4 {[%emt 0:00:00]} Nf6 {[%emt 0:00:36]} 2. c4 {[%emt 0:00:04]} e5 {[%emt 0:00:39]} 3. dxe5 {[%emt 0:00:50]} Ng4 {[%emt 0:00:07]} 4. e4 {[%emt 0:02:08]} Nxe5 {[%emt 0:01:16]} 5. f4 {[%emt 0:01:34]} Nec6 {[%emt 0:02:36]} 6. Be3 {[%emt 0:03:49]} Bb4+ {[%emt 0:02:28]} 7. Nd2 {[%emt 0:05:17]} Qe7 {[%emt 0:04:55]} 8. Bd3 {[%emt 0:01:23]} Na6 {[%emt 0:04:46]} 9. Qe2 {[%emt 0:05:52]} Nc5 {[%emt 0:01:48]} 10. Bxc5 {[%emt 0:11:48]} Bxc5 {[%emt 0:15:03]} 11. Ngf3 {[%emt 0:01:29]} d6 {[%emt 0:02:15]} 12. O-O-O {[%emt 0:01:27]} Bg4 {[%emt 0:02:19]} 13. Nb3 {[%emt 0:00:44]} O-O-O {[%emt 0:04:22]} 14. Bc2 {[%emt 0:14:20]} 1/2-1/2

[Event "ROU-ch Men 2018"]
[Site "Olanesti"]
[Date "2018.05.21"]
[Round "8"]
[White "Cenusa, Mihai"]
[Black "Tufa, Mihai"]
[Result "0-1"]
[ECO "A20"]
[WhiteElo "1819"]
[BlackElo "1915"]
[Annotator "NA RC"]
[PlyCount "196"]
[EventDate "2018.??.??"]
[EventType "swiss"]
[EventCountry "ROU"]
[SourceTitle "playchess.com"]
[Source "ChessBase"]
[SourceQuality "1"]
[TimeControl "40/5400+30:1800+30"]

1. c4 {[%emt 0:00:00]} e5 {[%emt 0:00:09]} 2. g3 {[%emt 0:00:00]} Nf6 {[%emt 0:00:10]} 3. Bg2 {[%emt 0:00:00]} Nc6 {[%emt 0:01:34]} 4. Nc3 {[%emt 0:00:19]} a6 {[%emt 0:01:43]} 5. Nf3 {[%emt 0:00:58]} Bc5 {[%emt 0:03:36]} 6. O-O {[%emt 0:02:56]} d6 {[%emt 0:00:27]} 7. e3 {[%emt 0:01:55]} O-O {[%emt 0:10:13]} 8. d4 {[%emt 0:00:41] A29: English Opening: Four Knights Variation with 4 g3} (8. h3 Ba7 9. d4 h6 10. dxe5 dxe5 11. Qxd8 Rxd8 12. b3 Be6 13. Ba3 Rd7 14. Rfd1 Rad8 15. Rxd7 Rxd7 {½-½ (41) Howell,D (2676)-Ponomariov,R (2694) Riadh 2017}) 8... Ba7 {[%emt 0:00:14]} 9. d5 {[%emt 0:00:49]} Ne7 {[%emt 0:01:39]} 10. e4 {[%emt 0:01:30]} h6 {[%emt 0:00:35]} 11. Be3 $146 {[%emt 0:01:08]} ({Predecessor:} 11. Qe2 b5 12. cxb5 axb5 13. b4 c5 14. dxc6 Nxc6 15. a3 Nd4 16. Nxd4 Bxd4 {1-0 (38) Czerwonski,A (2350)-Strzelecki,K (2415) Bielsko Biala 1990}) 11... Bxe3 {[%emt 0:12:35]} 12. fxe3 {[%emt 0:00:09]} Ng6 {[%emt 0:02:47]} 13. h3 {[%emt 0:01:49]} Bd7 {[%emt 0:02:00]} 14. Kh2 {[%emt 0:02:51]} c5 {[%emt 0:07:23]} 15. Nd2 {[%emt 0:02:41]} b5 {[%emt 0:00:47]} 16. b3 {[%emt 0:01:21]} Qa5 {[%emt 0:02:32]} 17. Ne2 {[%emt 0:01:15]} b4 {[%emt 0:00:21]} 18. Ng1 {[%emt 0:00:43]} Qa3 {[%emt 0:03:47]} 19. Qe2 {[%emt 0:05:31]} Qa5 {[%emt 0:00:40]} 20. Rf2 {[%emt 0:04:27]} Qd8 {[%emt 0:00:18]} 21. Raf1 {[%emt 0:02:33]} a5 {[%emt 0:00:59]} 22. Rf3 {[%emt 0:06:22]} a4 {[%emt 0:02:48]} 23. Qf2 {[%emt 0:01:32]} axb3 {[%emt 0:00:52]} 24. axb3 {[%emt 0:02:06]} Ra2 {[%emt 0:00:45]} 25. Qe1 {[%emt 0:02:12]} Qe7 {[%emt 0:00:31]} 26. R3f2 {[%emt 0:04:16]} Rfa8 {[%emt 0:00:41]} 27. Nb1 {[%emt 0:02:49]} Qd8 {[%emt 0:01:22]} 28. Ne2 {[%emt 0:02:01]} Rb2 {[%emt 0:01:13]} 29. Nd2 {[%emt 0:04:03]} Raa2 {[%emt 0:00:33]} 30. Nc1 {[%emt 0:00:14]} Ra1 {[%emt 0:00:33]} 31. Qe2 {[%emt 0:00:15]} Rc2 {[%emt 0:01:15]} 32. Nd3 {[%emt 0:05:48]} Rxf1 {[%emt 0:00:31]} 33. Qxf1 {[%emt 0:00:47]} Ra2 {[%emt 0:00:57]} 34. Qb1 {[%emt 0:06:13]} Qa5 {[%emt 0:01:37]} 35. Nf1 {[%emt 0:04:50]} Rxf2 {[%emt 0:04:31]} 36. Nxf2 {[%emt 0:00:06]} Qa3 {[%emt 0:03:13]} 37. Bf3 {[%emt 0:00:35]} Ne7 {[%emt 0:02:34]} 38. Nd2 {[%emt 0:00:32]} h5 {[%emt 0:01:31]} 39. Qd1 {[%emt 0:00:33]} Qb2 {[%emt 0:00:54]} 40. Kg1 {[%emt 0:00:00]} Qc3 {[%emt 0:05:14]} 41. Qe1 {[%emt 0:07:29]} g5 {[%emt 0:01:57]} 42. Nd1 {[%emt 0:01:38]} Qc2 {[%emt 0:00:30]} 43. Bg2 {[%emt 0:01:06]} Kg7 {[%emt 0:02:43]} 44. Kf2 {[%emt 0:02:01]} Kh6 {[%emt 0:01:52]} 45. Ke2 $2 {[%emt 0:00:32]} (45. Kg1 $15) 45... Nfg8 {[%emt 0:05:46]} 46. Nf2 {[%emt 0:01:20]} Qa2 {[%emt 0:01:14]} 47. g4 {[%emt 0:01:22]} h4 {[%emt 0:10:56]} 48. Nd3 {[%emt 0:02:16]} Ng6 {[%emt 0:01:05]} 49. Qf1 {[%emt 0:03:29]} f6 {[%emt 0:00:22]} 50. Qb1 {[%emt 0:00:29]} Qa3 {[%emt 0:01:29]} 51. Qb2 {[%emt 0:00:23]} Qa6 {[%emt 0:01:23]} 52. Nc1 {[%emt 0:00:10]} Nh8 {[%emt 0:01:01]} 53. Nf3 {[%emt 0:00:27]} Ne7 {[%emt 0:00:43]} 54. Kf1 {[%emt 0:00:25]} Nf7 {[%emt 0:00:26]} 55. Qa2 {[%emt 0:01:44]} Qxa2 {[%emt 0:02:51]} 56. Nxa2 {[%emt 0:00:05]} Nd8 {[%emt 0:00:15]} 57. Ne1 {[%emt 0:00:12]} Nb7 {[%emt 0:00:14]} 58. Bf3 {[%emt 0:03:03]} Na5 {[%emt 0:00:15]} 59. Bd1 {[%emt 0:00:10]} Nc8 {[%emt 0:00:16]} 60. Nd3 {[%emt 0:02:00]} Nb6 {[%emt 0:00:21]} 61. Kf2 {[%emt 0:00:36]} Kg7 {[%emt 0:04:14]} 62. Nb2 {[%emt 0:01:58]} Kf7 {[%emt 0:00:07]} 63. Nc1 {[%emt 0:00:30]} Ke7 {[%emt 0:00:26]} 64. Ke1 {[%emt 0:00:19]} Kd8 {[%emt 0:04:03]} 65. Kd2 {[%emt 0:00:10]} Kc7 {[%emt 0:00:53]} 66. Kd3 {[%emt 0:00:07]} Kd8 {[%emt 0:03:08]} 67. Be2 {[%emt 0:00:33]} Bc8 {[%emt 0:01:40]} 68. Nd1 {[%emt 0:00:28]} Kc7 {[%emt 0:02:50]} 69. Kc2 {[%emt 0:00:15]} Bd7 {[%emt 0:00:15]} 70. Nd3 {[%emt 0:00:20]} Bc8 {[%emt 0:00:10]} 71. Ne1 {[%emt 0:00:08]} Ba6 {[%emt 0:00:23]} 72. Ng2 {[%emt 0:00:31]} Nbxc4 {[%emt 0:02:50]} 73. Bxc4 {[%emt 0:05:49]} Nxc4 {[%emt 0:00:42]} 74. bxc4 {[%emt 0:00:04]} Bxc4 {[%emt 0:00:12]} 75. Nf2 {[%emt 0:00:05]} Bf1 {[%emt 0:01:35]} 76. Ne1 {[%emt 0:01:07]} c4 {[%emt 0:00:21]} 77. Kd2 $2 {[%emt 0:01:31]} (77. Nf3 $17 {was the only chance.}) 77... Kb6 {[%emt 0:00:34]} 78. Nc2 {[%emt 0:00:16]} Kb5 {[%emt 0:00:52]} 79. Ke1 {[%emt 0:03:17]} b3 {[%emt 0:02:25]} 80. Na3+ {[%emt 0:00:49]} Kb4 {[%emt 0:00:17]} 81. Nb1 {[%emt 0:00:17] [#]} c3 $2 {[%emt 0:03:40]} (81... Bxh3 $1 $19 {[%mdl 512] is more deadly.} 82. Nxh3 c3) 82. Kxf1 {[%emt 0:00:38] [#]} c2 {[%emt 0:06:22]} ({Günstiger ist} 82... b2 $1 $17 83. Nd3+ Kb3) 83. Nd3+ {[%emt 0:02:16]} Kc4 {[%emt 0:01:15]} 84. Nd2+ $2 {[%emt 0:02:30]} Kxd3 {[%emt 0:00:25]} 85. Nxb3 {[%emt 0:00:07]} Kc3 {[%emt 0:00:09]} 86. Nc1 {[%emt 0:01:40]} Kd2 {[%emt 0:00:13]} 87. Nb3+ {[%emt 0:07:36]} Kd1 {[%emt 0:00:15]} 88. Kg2 {[%emt 0:06:36]} c1=Q {[%emt 0:00:13]} 89. Nxc1 {[%emt 0:00:11]} Kxc1 {[%emt 0:00:06]} 90. Kg1 {[%emt 0:01:43]} Kc2 {[%emt 0:00:30]} 91. Kg2 {[%emt 0:00:23]} Kc3 {[%emt 0:00:49]} 92. Kf1 {[%emt 0:04:35]} Kd3 {[%emt 0:00:19]} 93. Kf2 {[%emt 0:00:11]} Kxe4 {[%emt 0:00:09]} 94. Ke2 {[%emt 0:00:11]} Kxd5 {[%emt 0:00:04]} 95. Kd3 {[%emt 0:00:07]} e4+ {[%emt 0:00:52]} 96. Kd2 {[%emt 0:03:18]} Kc4 {[%emt 0:00:13]} 97. Kc2 {[%emt 0:00:40]} d5 {[%emt 0:00:07]} 98. Kd2 {[%emt 0:00:50]} Kb3 {[%emt 0:00:03]} 0-1

[Event "ROU-ch Men 2018"]
[Site "Olanesti"]
[Date "2018.05.21"]
[Round "8"]
[White "Cotruta, Alexandru-Mihai"]
[Black "Pisu, Robert-Daniel"]
[Result "0-1"]
[ECO "E70"]
[WhiteElo "1776"]
[BlackElo "2254"]
[Annotator "NA"]
[PlyCount "66"]
[EventDate "2018.??.??"]
[EventType "swiss"]
[EventCountry "ROU"]
[SourceTitle "playchess.com"]
[Source "ChessBase"]
[SourceQuality "1"]
[TimeControl "40/5400+30:1800+30"]

1. d4 {[%emt 0:08:24]} Nf6 {[%emt 0:00:07]} 2. c4 {[%emt 0:00:16]} g6 {[%emt 0:00:11]} 3. Nc3 {[%emt 0:00:14]} Bg7 {[%emt 0:00:13]} 4. e4 {[%emt 0:00:09]} d6 {[%emt 0:00:07]} 5. Bg5 {[%emt 0:00:26]} h6 {[%emt 0:03:16]} 6. Be3 {[%emt 0:00:43]} Ng4 {[%emt 0:07:52] E70: King's Indian: Miscellaneous lines with 4 e4, including 5 Nge2 and 5 Bd3 0-0 6 Nge2} (6... c5 7. d5 Ng4 8. Bd2 Bd4 9. Nh3 e5 10. dxe6 Bxe6 11. Be2 Qd7 12. O-O Ne5 13. Nf4 Bxc4 14. Nfd5 Bxd5 15. Nxd5 {0-1 (27) Tregubov,P (2585)-Banikas,H (2568) Doha 2016}) 7. Bf4 {[%emt 0:09:19]} Nc6 {[%emt 0:15:46]} 8. d5 {[%emt 0:04:21]} Nce5 {[%emt 0:11:32]} 9. h3 $146 {[%emt 0:00:46]} ({Predecessor:} 9. Qd2 g5 10. h3 gxf4 11. hxg4 Nxg4 12. Qxf4 c6 13. Be2 Qb6 14. Nd1 Bxb2 {0-1 (45) Ivanov,I (2351)-Zakharevich,I (2463) Belgorod 2007}) 9... Nf6 {[%emt 0:02:54]} 10. Nf3 {[%emt 0:12:03]} Nxf3+ {[%emt 0:06:33]} 11. Qxf3 {[%emt 0:00:23]} e5 {[%emt 0:01:24]} 12. Be3 {[%emt 0:00:09]} O-O {[%emt 0:01:28]} 13. Bd3 {[%emt 0:00:29]} a6 {[%emt 0:07:02]} 14. c5 {[%emt 0:00:49]} Nh5 {[%emt 0:05:37]} 15. cxd6 {[%emt 0:01:33]} cxd6 {[%emt 0:00:40]} 16. g4 {[%emt 0:00:43]} (16. Rc1 $14) 16... Nf4 {[%emt 0:01:48]} 17. Bxf4 {[%emt 0:00:59]} exf4 {[%emt 0:00:05]} ({Black should play} 17... Qf6 $15) 18. Qxf4 {[%emt 0:00:16]} Qb6 {[%emt 0:02:46]} 19. Qd2 {[%emt 0:00:26]} Bd7 {[%emt 0:05:56]} 20. Ke2 {[%emt 0:11:20]} f5 {[%emt 0:01:42]} 21. gxf5 {[%emt 0:00:06]} gxf5 {[%emt 0:00:12]} 22. Rhg1 {[%emt 0:06:42]} (22. Rag1 $11) 22... f4 {[%emt 0:07:28]} 23. f3 {[%emt 0:04:12]} (23. e5 $11 {keeps the balance.} dxe5 24. Be4) 23... Kh8 {[%emt 0:03:37]} 24. Rg6 {[%emt 0:01:34]} Be8 {[%emt 0:00:36]} 25. Rg4 {[%emt 0:00:16]} (25. Rg2 $11 {keeps the balance.}) 25... Be5 {[%emt 0:00:57]} 26. a4 {[%emt 0:08:24]} Bh5 {[%emt 0:04:09]} 27. a5 {[%emt 0:04:11]} Qd8 {[%emt 0:01:06]} 28. Rg2 {[%emt 0:02:20]} (28. Na4 $1 $15) 28... Qh4 {[%emt 0:00:41]} 29. Qe1 {[%emt 0:00:43]} Bxf3+ {[%emt 0:00:22]} 30. Kxf3 {[%emt 0:01:19]} Qxh3+ {[%emt 0:00:08]} 31. Ke2 $19 {[%emt 0:00:59]} Qxg2+ {[%emt 0:01:29]} 32. Qf2 {[%emt 0:00:23]} f3+ {[%emt 0:00:06]} 33. Ke1 {[%emt 0:00:14]} Bg3 {[%emt 0:00:05]} 0-1

[Event "ROU-ch Men 2018"]
[Site "Olanesti"]
[Date "2018.05.22"]
[Round "9"]
[White "Raducanu, Andrei-Augustin"]
[Black "Tufa, Mihai"]
[Result "1-0"]
[ECO "B26"]
[WhiteElo "2063"]
[BlackElo "1915"]
[Annotator "NA RC"]
[PlyCount "71"]
[EventDate "2018.??.??"]
[EventType "swiss"]
[EventCountry "ROU"]
[SourceTitle "playchess.com"]
[Source "ChessBase"]
[SourceQuality "1"]
[TimeControl "40/5400+30:1800+30"]

1. e4 {[%emt 0:00:00]} c5 {[%emt 0:00:08]} 2. Nc3 {[%emt 0:00:04]} Nc6 {[%emt 0:00:11]} 3. g3 {[%emt 0:00:04]} g6 {[%emt 0:02:38]} 4. Bg2 {[%emt 0:00:03]} Bg7 {[%emt 0:00:08]} 5. d3 {[%emt 0:00:09]} d6 {[%emt 0:00:33]} 6. Be3 {[%emt 0:00:22]} e5 {[%emt 0:03:36]} 7. Qd2 {[%emt 0:04:19]} Nge7 {[%emt 0:00:27]} 8. Bh6 {[%emt 0:04:36]} Bxh6 {[%emt 0:03:42]} 9. Qxh6 {[%emt 0:00:02]} Ng8 {[%emt 0:00:26]} 10. Qd2 {[%emt 0:01:26]} Nf6 {[%emt 0:00:34]} 11. Nge2 {[%emt 0:16:42]} a6 {[%emt 0:00:32]} 12. a4 {[%emt 0:04:45]} Rb8 {[%emt 0:00:11]} 13. f4 {[%emt 0:00:48]} b5 {[%emt 0:01:19]} 14. axb5 {[%emt 0:00:24]} axb5 {[%emt 0:00:03]} 15. O-O {[%emt 0:13:37]} O-O {[%emt 0:00:57]} 16. Nd1 {[%emt 0:11:04]} Kg7 {[%emt 0:03:13]} 17. Ne3 {[%emt 0:00:53]} Nd4 {[%emt 0:08:31]} 18. f5 {[%emt 0:00:32]} g5 {[%emt 0:02:56]} 19. h4 {[%emt 0:05:28]} g4 {[%emt 0:01:51]} 20. h5 {[%emt 0:06:51]} h6 {[%emt 0:23:19]} 21. Qd1 {[%emt 0:01:11]} Nxe2+ {[%emt 0:04:30]} 22. Qxe2 {[%emt 0:00:58]} Nxh5 {[%emt 0:00:12]} 23. f6+ {[%emt 0:11:28]} Nxf6 {[%emt 0:00:25]} 24. Nf5+ {[%emt 0:00:16]} Kh7 {[%emt 0:08:37]} 25. Qf2 {[%emt 0:09:10]} Ng8 {[%emt 0:01:55]} 26. Qe2 {[%emt 0:01:50]} Nf6 {[%emt 0:00:51]} 27. Qf2 {[%emt 0:00:03]} Ng8 {[%emt 0:00:06]} 28. Ra7 {[%emt 0:02:18]} Rb6 {[%emt 0:00:48]} 29. Ne3 {[%emt 0:01:18]} Be6 {[%emt 0:00:40]} 30. Nd5 {[%emt 0:02:13]} Rc6 {[%emt 0:00:24]} 31. Rfa1 {[%emt 0:00:27]} Qc8 {[%emt 0:09:26]} 32. Bf1 {[%emt 0:01:25]} Qd8 {[%emt 0:02:47]} 33. c3 {[%emt 0:00:55]} Kh8 {[%emt 0:06:53]} 34. Rb7 {[%emt 0:00:31]} f5 {[%emt 0:00:58]} 35. Raa7 {[%emt 0:00:24]} Nf6 {[%emt 0:01:02]} 36. Qh2 {[%emt 0:00:21]} 1-0

[Event "ROU-ch Men 2018"]
[Site "Olanesti"]
[Date "2018.05.22"]
[Round "9"]
[White "Neagu, Liviu"]
[Black "Albu, George"]
[Result "1-0"]
[ECO "B28"]
[WhiteElo "2025"]
[BlackElo "2038"]
[Annotator "NA RC"]
[PlyCount "105"]
[EventDate "2018.??.??"]
[EventType "swiss"]
[EventCountry "ROU"]
[SourceTitle "playchess.com"]
[Source "ChessBase"]
[SourceQuality "1"]
[TimeControl "40/5400+30:1800+30"]

1. e4 {[%emt 0:00:00]} c5 2. Nf3 a6 3. c4 d6 4. d4 cxd4 5. Nxd4 Nf6 6. Nc3 g6 7. Be2 Bg7 8. Be3 Nc6 9. O-O O-O 10. h3 Nd7 {B38: Sizilianisch (Maroczy-Aufbau)} (10... Bd7 11. Nb3 a5 12. Nd2 Nb4 13. a3 Na6 14. f4 Bc6 15. Bf3 Nd7 16. Nb3 Nac5 17. Nxc5 Nxc5 18. e5 a4 19. Bxc6 bxc6 20. Bxc5 dxc5 {0-1 (62) Bosiocic,M (2624)-Guseinov,G (2646) Riadh 2017}) 11. Rb1 Nc5 $146 ({Vorgänger:} 11... Re8 12. Re1 Nf6 13. Nf3 Rb8 14. Bf4 Nh5 15. Be3 Nf6 16. Bf4 Nh5 {½-½ (16) Rodriguez,M (1479)-Mendivil Anton,D (2267) Santa Cruz de Tenerife 2002}) 12. b4 Ne6 13. Nxc6 bxc6 14. Na4 Rb8 15. f4 f5 16. exf5 gxf5 17. Bf3 Qc7 18. Qd2 Kh8 19. Nc3 Bb7 20. Rfe1 Ba8 {[%emt 1:30:31]} 21. Bf2 Nxf4 22. Bg3 Ng6 23. c5 f4 24. Bf2 d5 25. Re6 Rf6 26. Rbe1 Rxe6 27. Rxe6 Nf8 28. Re1 e5 29. Bg4 a5 30. b5 Qf7 31. b6 Bb7 32. Na4 Ra8 33. Nb2 Qf6 34. Nd3 Ng6 35. Bh5 e4 36. Bxg6 e3 37. Bxe3 fxe3 38. Qxe3 hxg6 39. Kh1 Rf8 40. Qg3 Bc8 41. Ne5 Bf5 42. b7 Kh7 (42... Kg8 $15) 43. Nf3 Be4 44. Ng5+ Kg8 45. b8=Q Rxb8 46. Qxb8+ Bf8 47. Nxe4 dxe4 48. Rxe4 Kh7 (48... Qa1+ $142 49. Kh2 Qf6) 49. Qe5 Qf2 (49... Qxe5 $142 50. Rxe5 Kg7) 50. Rf4 Qxc5 51. Rh4+ Kg8 52. Rh8+ Kf7 53. Rh7+ 1-0

[Event "ROU-ch Men 2018"]
[Site "Olanesti"]
[Date "2018.05.22"]
[Round "9"]
[White "Rauca, Horatiu-Augustin"]
[Black "Farcadi, Hunor"]
[Result "0-1"]
[ECO "B30"]
[WhiteElo "1897"]
[BlackElo "1959"]
[Annotator "NA RC"]
[PlyCount "83"]
[EventDate "2018.??.??"]
[EventType "swiss"]
[EventCountry "ROU"]
[SourceTitle "playchess.com"]
[Source "ChessBase"]
[SourceQuality "1"]
[TimeControl "40/5400+30:1800+30"]

1. e4 {[%emt 0:00:00]} c5 {[%emt 0:00:03]} 2. Nf3 {[%emt 0:00:00]} Nc6 {[%emt 0:00:03]} 3. Nc3 {[%emt 0:00:00]} e5 {[%emt 0:00:25]} 4. Bc4 {[%emt 0:00:00]} d6 {[%emt 0:01:00]} 5. d3 {[%emt 0:00:35]} Be7 {[%emt 0:01:06]} 6. Be3 {[%emt 0:03:33]} Nf6 {[%emt 0:01:32]} 7. h3 {[%emt 0:00:26]} O-O {[%emt 0:04:36]} 8. Qd2 {[%emt 0:06:50]} Nd4 {[%emt 0:09:21]} 9. O-O-O {[%emt 0:05:14]} Bd7 {[%emt 0:04:44]} 10. Nd5 {[%emt 0:00:47]} b5 {[%emt 0:02:28]} 11. Nxf6+ {[%emt 0:00:35]} Bxf6 {[%emt 0:00:17]} 12. Bd5 {[%emt 0:00:05]} Rb8 {[%emt 0:01:18]} 13. c3 {[%emt 0:01:54]} Ne6 {[%emt 0:03:02]} 14. g4 {[%emt 0:02:54]} a5 {[%emt 0:05:23]} 15. g5 {[%emt 0:03:32]} Be7 {[%emt 0:00:08]} 16. Rdg1 {[%emt 0:06:06]} Nc7 {[%emt 0:05:15]} 17. c4 {[%emt 0:11:03]} Nxd5 {[%emt 0:08:13]} 18. cxd5 {[%emt 0:00:26]} Qc8 {[%emt 0:06:12]} 19. Rh2 {[%emt 0:07:33]} Qa6 {[%emt 0:06:23]} 20. Qe2 {[%emt 0:03:39]} Rfc8 {[%emt 0:05:24]} 21. Kb1 {[%emt 0:04:23]} a4 {[%emt 0:02:10]} 22. Nd2 {[%emt 0:06:01]} a3 {[%emt 0:05:11]} 23. b3 {[%emt 0:00:12]} c4 {[%emt 0:00:37]} 24. Rc1 {[%emt 0:05:07]} cxb3 {[%emt 0:03:20]} 25. Nxb3 {[%emt 0:00:10]} Rxc1+ {[%emt 0:00:26]} 26. Nxc1 {[%emt 0:03:33]} b4 {[%emt 0:00:47]} 27. Qd1 {[%emt 0:03:43]} Ba4 {[%emt 0:01:37]} 28. Nb3 {[%emt 0:00:07]} Bb5 {[%emt 0:00:09]} 29. Nc1 {[%emt 0:00:08]} Bd8 {[%emt 0:05:42]} 30. f4 {[%emt 0:04:46]} Bb6 {[%emt 0:03:56]} 31. Bxb6 {[%emt 0:06:27]} Qxb6 {[%emt 0:00:05]} 32. fxe5 {[%emt 0:00:13]} dxe5 {[%emt 0:00:14]} 33. Qb3 {[%emt 0:01:32]} Qd4 {[%emt 0:07:08]} 34. Rc2 {[%emt 0:00:31]} g6 {[%emt 0:01:03]} 35. Rc7 {[%emt 0:01:48]} Rf8 {[%emt 0:03:16]} 36. Rb7 {[%emt 0:04:40]} Rc8 {[%emt 0:03:54]} 37. Rxb5 {[%emt 0:04:18]} Qg1 {[%emt 0:00:34]} 38. Qc4 {[%emt 0:01:35]} Rxc4 {[%emt 0:00:05]} 39. dxc4 {[%emt 0:00:06]} Qe1 {[%emt 0:00:37]} 40. Kc2 {[%emt 0:00:00]} Qc3+ {[%emt 0:00:57]} 41. Kd1 {[%emt 0:01:33]} Qd4+ {[%emt 0:00:52]} 42. Ke1 {[%emt 0:00:27]} 0-1